bitfinex-derivatives/quotes_SOLF0:USTF0_20240830
["timestamp","ask_amount","ask_price","bid_price","bid_amount"]
[1725031852509,3.7429,133.6,133.54,0.05661529]
[1725031852510,7.522,133.64,133.54,2.70491529]
[1725031852710,64.15728499,133.67,133.58,43.18]
[1725031852711,20.97728499,133.67,133.58,43.18]
[1725031852922,20.97728499,133.7,133.6,43.18]
[1725031853127,20.97728499,133.7,133.61,5.3047]
[1725031853328,20.97728499,133.7,133.65,43.18]
[1725031853619,7.53562379,133.69,133.66,0.04880048]
[1725031854217,7.522,133.75,133.67,43.18]
[1725031854414,20.97728499,133.79,133.69,43.18]
[1725031854819,20.97728499,133.79,133.69,46.85002988]
[1725031855225,11.78391741,133.8,133.73,0.05058666]
[1725031855417,19.30591741,133.8,133.73,0.05058666]
[1725031855718,11.22461741,133.8,133.73,0.05058666]
[1725031855916,43.18,133.81,133.73,0.05058666]
[1725031856117,1.37452465,133.8,133.73,0.05058666]
[1725031856310,1.37452465,133.8,133.72,43.18]
[1725031856311,1.37452465,133.81,133.75,0.04996691]
[1725031856512,3.7382,133.76,133.75,0.04996691]
[1725031856712,50.702,133.81,133.75,0.04996691]
[1725031856917,50.702,133.81,133.68,3.77010249]
[1725031856918,1.37447715,133.8,133.77,0.05648245]
[1725031857122,3.75177742,133.79,133.69,43.18]
[1725031857323,43.18,133.83,133.73,0.05622497]
[1725031857524,1.37440538,133.82,133.77,0.0473702]
[1725031857722,5.07831324,133.82,133.77,0.0473702]
[1725031857918,43.18,133.88,133.77,0.0473702]
[1725031858122,43.18,133.88,133.81,0.05327908]
[1725031858123,1.37413144,133.87,133.81,0.05327908]
[1725031858321,5.19959428,133.86,133.81,0.05327908]
[1725031858517,5.10988937,133.85,133.81,0.05327908]
[1725031858722,43.18,133.88,133.81,0.05327908]
[1725031858918,1.37377964,133.87,133.81,0.05327908]
[1725031859220,3.736,133.84,133.81,0.05327908]
[1725031859521,46.84262233,133.88,133.81,0.05327908]
[1725031859522,3.66262233,133.88,133.81,0.05327908]
[1725031859713,3.7359,133.84,133.81,0.05327908]
[1725031859917,43.18,133.9,133.81,0.05428141]
[1725031860120,3.7357,133.85,133.84,0.05655144]
[1725031860623,3.7381,133.77,133.74,5.5163]
[1725031860821,3.73663736,133.81,133.73,3.80654044]
[1725031861023,7.522,133.86,133.73,3.80654044]
[1725031861024,43.18,133.8,133.73,3.80654044]
[1725031861218,50.702,133.85,133.73,46.98654044]
[1725031861525,1.37400489,133.84,133.73,43.18]
[1725031861724,0.05483242,133.8,133.78,0.05707804]
[1725031862025,3.7373,133.79,133.78,0.05707804]
[1725031862227,0.05483242,133.8,133.78,0.05707804]
[1725031864423,0.05483242,133.8,133.78,3.79467804]
[1725031864620,2.7944,133.9,133.79,43.18]
[1725031864920,7.522,133.91,133.82,43.18]
[1725031864921,1.3735813,133.89,133.82,43.18]
[1725031865119,1.3735813,133.89,133.79,6.4031142]
[1725031865120,1.37347505,133.88,133.84,43.18]
[1725031865322,7.522,133.91,133.84,43.18]
[1725031865515,3.7344,133.9,133.86,0.04772434]
[1725031865723,3.70067264,133.92,133.86,0.04772434]
[1725031865724,7.522,133.92,133.86,0.04772434]
[1725031865925,43.18,133.99,133.86,43.22772434]
[1725031866124,1.37290112,133.98,133.91,43.22795651]
[1725031866423,2.6289,134.02,133.93,0.05235732]
[1725031866618,43.18,133.99,133.89,43.18]
[1725031866820,1.37248363,133.98,133.93,0.05149895]
[1725031867219,43.18,134.01,133.93,0.05149895]
[1725031867429,2.6289,134.02,133.93,43.23149895]
[1725031867627,3.7321,133.98,133.96,0.05517667]
[1725031868222,3.7323,133.97,133.96,0.05517667]
[1725031868824,43.18,133.99,133.87,2.7715]
[1725031869025,43.18,133.99,133.87,6.56135263]
[1725031869328,43.18,133.94,133.82,43.18]
[1725031869529,43.18,133.92,133.79,43.18]
[1725031869827,3.7357,133.85,133.84,0.04760176]
[1725031870033,0.04827838,133.86,133.83,0.05210361]
[1725031870223,0.04961268,133.86,133.83,0.04905167]
[1725031870532,43.18,133.84,133.71,43.18]
[1725031870829,43.18,133.82,133.71,43.18]
[1725031871022,43.18,133.8,133.69,43.18]
[1725031871221,43.18,133.76,133.64,43.18]
[1725031871532,0.05052542,133.71,133.69,0.04883189]
[1725031871831,0.05741121,133.71,133.69,43.23293293]
[1725031872631,0.05741121,133.71,133.69,0.05293293]
[1725031872828,3.7399,133.7,133.69,0.05293293]
[1725031873530,0.05741121,133.71,133.69,0.05293293]
[1725031875031,3.7414,133.65,133.59,47.00956547]
[1725031875236,3.7414,133.65,133.58,3.7432]
[1725031875237,3.65491634,133.65,133.55,43.18]
[1725031875425,3.65491634,133.65,133.48,3.67211947]
[1725031875426,43.18,133.64,133.53,43.18]
[1725031875627,3.7441,133.55,133.51,43.18]
[1725031875828,43.18,133.62,133.51,43.18]
[1725031876034,0.04740112,133.58,133.55,0.0504686]
[1725031876329,0.04798023,133.58,133.55,0.05683518]
[1725031877830,0.04798023,133.58,133.55,43.23683518]
[1725031878137,0.04798023,133.58,133.56,3.70694448]
[1725031878330,50.702,133.69,133.57,43.18]
[1725031878527,1.37554753,133.68,133.57,43.18]
[1725031878729,3.77321346,133.67,133.57,43.18]
[1725031878929,43.18,133.69,133.57,43.18]
[1725031879130,3.7421,133.63,133.57,43.18]
[1725031879836,0.05429278,133.61,133.59,0.05309265]
[1725031880128,0.0547789,133.61,133.59,0.04898487]
[1725031880823,3.7427,133.6,133.59,0.04898487]
[1725031881530,0.0547789,133.61,133.59,0.04898487]
[1725031882144,3.7427,133.6,133.59,0.04898487]
[1725031882325,0.0547789,133.61,133.59,0.04898487]
[1725031883034,0.0547789,133.61,133.59,43.22898487]
[1725031883236,3.6414,133.7,133.6,3.74597589]
[1725031883431,3.6414,133.7,133.63,43.18]
[1725031883432,2.6414,133.7,133.63,43.18]
[1725031883830,7.522,133.73,133.63,43.18]
[1725031884131,1.37515627,133.72,133.6,43.18]
[1725031884434,0.05215534,133.67,133.65,0.05384832]
[1725031884634,0.04791258,133.67,133.65,0.0512512]
[1725031885142,0.04791258,133.67,133.65,43.2312512]
[1725031885438,0.04791258,133.67,133.65,46.9724512]
[1725031885839,0.04791258,133.67,133.65,43.2312512]
[1725031886042,0.04791258,133.67,133.65,0.0512512]
[1725031887040,2.7584,133.75,133.65,43.2312512]
[1725031887337,54.42925911,133.79,133.67,43.18]
[1725031887534,3.99249605,133.76,133.65,43.18]
[1725031887730,3.99249605,133.76,133.61,8.4839]
[1725031887731,1.37489605,133.75,133.68,43.18]
[1725031888035,2.6176,133.76,133.68,43.18]
[1725031888236,2.6176,133.76,133.7,0.05586768]
[1725031888237,1.37475917,133.75,133.7,0.05586768]
[1725031888437,1.37475917,133.75,133.71,0.05619982]
[1725031888647,2.6176,133.76,133.71,0.05619982]
[1725031889133,3.7393,133.72,133.71,0.05619982]
[1725031889534,3.7389,133.74,133.71,0.05619982]
[1725031890039,3.72725911,133.79,133.71,0.05619982]
[1725031890237,1.37457012,133.78,133.72,43.18]
[1725031890539,3.7376,133.78,133.74,0.05245069]
[1725031890731,46.8767906,133.87,133.74,0.05245069]
[1725031890936,1.37430806,133.86,133.79,0.05119873]
[1725031891133,3.7371,133.8,133.79,0.05119873]
[1725031891338,7.44662979,133.8,133.79,0.05119873]
[1725031891743,3.7371,133.8,133.79,0.05119873]
[1725031892136,7.42868407,133.8,133.79,0.05119873]
[1725031892337,3.7371,133.8,133.79,0.05119873]
[1725031892537,7.47504385,133.8,133.79,0.05119873]
[1725031892738,3.7371,133.8,133.79,0.05119873]
[1725031893138,7.51654332,133.8,133.79,0.05119873]
[1725031893346,3.7371,133.8,133.79,0.05119873]
[1725031893734,3.7368,133.81,133.79,0.05119873]
[1725031893941,43.18,133.86,133.79,0.05119873]
[1725031894239,1.37407482,133.85,133.79,0.05119873]
[1725031894548,43.18,133.88,133.79,0.05119873]
[1725031894741,1.37367758,133.87,133.82,0.05440454]
[1725031895343,3.7362,133.83,133.82,0.05440454]
[1725031895540,10.214,133.9,133.82,0.05440454]
[1725031895745,10.214,133.9,133.82,43.23440454]
[1725031895945,3.80083732,133.89,133.82,43.23440454]
[1725031896255,43.18,133.84,133.82,0.05440454]
[1725031896546,43.18,133.84,133.7,8.2457]
[1725031896547,1.37385377,133.83,133.7,8.2457]
[1725031896748,43.18,133.79,133.67,43.18]
[1725031897245,1.37452448,133.78,133.67,43.18]
[1725031897443,0.05039558,133.74,133.71,0.05634216]
[1725031897647,3.7395,133.72,133.71,0.05047902]
[1725031898046,0.04993324,133.74,133.71,0.05047902]
[1725031899454,3.7393,133.72,133.71,0.05047902]
[1725031899947,0.04993324,133.74,133.71,0.05047902]
[1725031900451,3.7393,133.72,133.71,0.05047902]
[1725031900850,0.04993324,133.74,133.71,0.05047902]
[1725031901654,43.18,133.72,133.61,7.9931]
[1725031902157,43.18,133.74,133.56,43.18]
[1725031902355,43.18,133.64,133.55,3.70782829]
[1725031902655,43.18,133.57,133.46,43.18]
[1725031902958,0.05563063,133.53,133.5,0.05582664]
[1725031903356,43.23563063,133.53,133.5,0.05582664]
[1725031903654,3.7452,133.51,133.5,0.05582664]
[1725031903850,46.9252,133.51,133.5,0.05582664]
[1725031904051,43.18,133.51,133.37,43.18]
[1725031904251,43.18,133.49,133.35,43.18]
[1725031904455,3.73064455,133.54,133.35,46.91548029]
[1725031904654,43.18,133.48,133.37,43.18]
[1725031904855,43.18,133.5,133.37,43.18]
[1725031905056,43.18,133.5,133.37,46.9083608]
[1725031905260,0.05610797,133.45,133.42,0.04958221]
[1725031905459,0.05423631,133.45,133.42,0.05755303]
[1725031906852,43.18,133.54,133.43,43.18]
[1725031907259,3.7446,133.53,133.43,43.18]
[1725031907459,43.18,133.54,133.43,43.18]
[1725031907654,43.18,133.56,133.46,43.18]
[1725031907853,0.05068761,133.52,133.5,0.04751102]
[1725031908149,43.18,133.61,133.48,43.18]
[1725031908354,1.3766429,133.6,133.48,43.18]
[1725031908554,1.3766429,133.6,133.48,46.84177131]
[1725031908754,43.18,133.57,133.45,2.6947]
[1725031908960,43.18,133.57,133.45,45.8747]
[1725031909157,0.04847029,133.52,133.5,0.05205227]
[1725031909360,0.05010365,133.52,133.5,0.05205227]
[1725031910560,3.7452,133.51,133.5,0.05205227]
[1725031910864,0.05010365,133.52,133.5,0.05205227]
[1725031911954,3.66751554,133.6,133.5,0.05205227]
[1725031912157,3.66751554,133.6,133.47,46.97709385]
[1725031912158,3.66751554,133.6,133.49,43.18]
[1725031912359,43.18,133.65,133.52,43.18]
[1725031912554,43.18,133.65,133.53,2.7414]
[1725031912850,3.7422,133.62,133.54,43.18]
[1725031913050,43.18,133.65,133.57,0.05639778]
[1725031913259,3.7427,133.6,133.57,0.05639778]
[1725031913462,50.656,133.67,133.57,0.05639778]
[1725031913658,43.18,133.61,133.53,2.7414]
[1725031913858,3.7435,133.58,133.56,0.05377046]
[1725031914267,7.476,133.67,133.56,0.05377046]
[1725031914568,43.18,133.69,133.6,0.0523231]
[1725031914764,46.92466651,133.69,133.63,0.04981188]
[1725031914967,43.18,133.67,133.63,0.04981188]
[1725031915863,3.74466651,133.69,133.63,0.04981188]
[1725031915864,46.92466651,133.69,133.63,0.04981188]
[1725031916058,43.18,133.69,133.63,0.04981188]
[1725031916260,3.76300621,133.69,133.63,0.04981188]
[1725031916458,3.7404,133.69,133.63,0.04981188]
[1725031916661,3.7375552,133.7,133.63,0.04981188]
[1725031916968,43.18,133.68,133.63,0.04981188]
[1725031917172,43.18,133.68,133.64,0.0475178]
[1725031917465,43.18,133.68,133.65,0.05190161]
[1725031917767,3.7413,133.65,133.58,3.7431]
[1725031917972,43.18,133.68,133.6,0.05345403]
[1725031918263,3.7414,133.65,133.6,0.05345403]
[1725031918564,3.70453524,133.69,133.6,0.05345403]
[1725031918766,43.18,133.71,133.63,0.05122748]
[1725031918964,43.18,133.71,133.66,0.05462555]
[1725031919159,48.8208,133.73,133.66,0.05462555]
[1725031919363,3.7399,133.7,133.66,0.05462555]
[1725031919866,3.7396,133.71,133.66,0.05462555]
[1725031920267,43.18,133.73,133.66,0.05462555]
[1725031920464,43.18,133.71,133.66,0.05462555]
[1725031920660,7.476,133.73,133.67,0.0498198]
[1725031920865,7.476,133.73,133.69,0.04875865]
[1725031921060,7.476,133.73,133.58,3.74045801]
[1725031921368,7.476,133.73,133.64,0.05426115]
[1725031921559,7.476,133.73,133.67,0.05118462]
[1725031921757,1.37580092,133.72,133.55,2.8293]
[1725031921975,1.37580092,133.72,133.47,2.7679]
[1725031921976,7.476,133.71,133.47,2.7679]
[1725031922263,7.476,133.69,133.47,2.7679]
[1725031922467,3.7436,133.57,133.47,6.42354449]
[1725031922676,0.05249136,133.53,133.51,0.05502234]
[1725031922867,14.164,133.68,133.47,2.7679]
[1725031923066,14.164,133.68,133.52,43.18]
[1725031923067,3.7425,133.61,133.52,43.18]
[1725031923272,43.18,133.66,133.53,5.622]
[1725031923568,3.7429,133.6,133.54,3.7629136]
[1725031923765,43.18,133.64,133.53,5.622]
[1725031923965,43.18,133.64,133.57,0.04953281]
[1725031924171,43.18,133.62,133.57,0.04953281]
[1725031924374,43.18,133.6,133.58,0.05723339]
[1725031924578,3.7429,133.59,133.58,0.05200084]
[1725031926477,1.0,133.63,133.58,0.05200084]
[1725031926868,43.18,133.65,133.58,0.05200084]
[1725031926869,3.7428,133.6,133.58,0.05200084]
[1725031927171,43.18,133.63,133.58,0.05200084]
[1725031927371,43.18,133.61,133.59,0.04869326]
[1725031927571,46.94141979,133.61,133.5,43.18]
[1725031927767,3.76141979,133.61,133.54,0.05617051]
[1725031927972,43.18,133.63,133.54,0.05617051]
[1725031928275,5.688,133.68,133.57,43.23527739]
[1725031928479,5.688,133.68,133.61,0.0519355]
[1725031928665,9.34046368,133.68,133.61,0.0519355]
[1725031928870,3.65246368,133.68,133.61,0.0519355]
[1725031929078,3.7412,133.66,133.61,0.0519355]
[1725031929276,3.71873595,133.65,133.62,0.04832437]
[1725031929477,43.18,133.67,133.62,0.05457577]
[1725031929667,43.18,133.69,133.62,0.05457577]
[1725031930177,3.77395209,133.68,133.62,0.05457577]
[1725031930369,43.18,133.69,133.62,0.05457577]
[1725031930571,3.73727544,133.68,133.62,0.05457577]
[1725031930878,7.476,133.73,133.62,0.05457577]
[1725031930879,7.476,133.78,133.62,0.05457577]
[1725031931072,43.18,133.71,133.67,0.04739957]
[1725031931268,46.89519461,133.71,133.68,0.05422534]
[1725031931471,43.18,133.69,133.55,3.7805152]
[1725031931672,50.6576,133.74,133.56,3.78443113]
[1725031931673,43.18,133.65,133.56,3.78443113]
[1725031931868,43.18,133.67,133.55,43.18]
[1725031932180,43.18,133.67,133.56,3.7435]
[1725031932181,3.7416,133.64,133.56,3.7435]
[1725031932379,43.18,133.67,133.56,7.49387425]
[1725031932678,0.05228729,133.61,133.59,0.05040944]
[1725031932877,0.04776444,133.61,133.59,0.04774825]
[1725031933076,0.04776444,133.61,133.59,3.79587751]
[1725031933267,0.04776444,133.61,133.59,0.04774825]
[1725031933466,43.18,133.69,133.59,43.22774825]
[1725031933674,43.18,133.75,133.64,43.18]
[1725031933876,48.4895,133.78,133.67,43.18]
[1725031934073,5.3095,133.78,133.69,43.18]
[1725031934279,3.739,133.74,133.69,43.18]
[1725031934780,3.7391,133.73,133.7,0.04738024]
[1725031935275,3.738,133.77,133.71,43.18]
[1725031935475,43.18,133.81,133.73,0.05202116]
[1725031935679,43.18,133.81,133.76,0.05343964]
[1725031935875,3.7379,133.77,133.76,0.05343964]
[1725031936479,3.7399,133.7,133.68,2.6307]
[1725031936672,46.942808,133.74,133.64,3.81737271]
[1725031936868,43.18,133.76,133.65,43.18]
[1725031937182,43.18,133.79,133.65,43.18]
[1725031937484,43.18,133.76,133.71,0.04765112]
[1725031937669,0.05320483,133.75,133.71,0.04765112]
[1725031938183,46.9193,133.72,133.71,0.04765112]
[1725031938482,54.3978682,133.72,133.61,6.28619151]
[1725031938679,7.476,133.67,133.61,6.28619151]
[1725031938979,43.18,133.73,133.63,43.18]
[1725031939378,0.05336508,133.69,133.67,0.05483982]
[1725031940781,3.79366508,133.69,133.67,0.05483982]
[1725031941277,3.7404,133.68,133.67,0.05483982]
[1725031941476,11.2164,133.68,133.67,0.05483982]
[1725031941679,11.2164,133.68,133.58,3.70371755]
[1725031941880,3.81591742,133.72,133.56,43.18]
[1725031941881,7.476,133.65,133.56,43.18]
[1725031942180,43.18,133.66,133.55,2.8063]
[1725031942181,7.476,133.62,133.55,2.8063]
[1725031942770,0.0478705,133.6,133.57,0.05299188]
[1725031943572,45.9393,133.71,133.58,43.18]
[1725031943775,45.9393,133.71,133.61,43.18]
[1725031943975,45.9393,133.71,133.59,43.18]
[1725031944176,46.0714,133.73,133.61,43.18]
[1725031944480,43.18,133.71,133.59,43.18]
[1725031944678,43.18,133.71,133.64,0.04761756]
[1725031944679,0.05314483,133.66,133.64,0.04761756]
[1725031944874,3.7413,133.65,133.64,0.04761756]
[1725031945483,0.05230096,133.66,133.64,0.04761756]
[1725031948591,3.7413,133.65,133.64,0.04761756]
[1725031949179,11.2173,133.65,133.64,0.04761756]
[1725031949475,11.17164753,133.65,133.56,2.6723]
[1725031949677,7.476,133.65,133.56,2.6723]
[1725031949877,43.18,133.69,133.56,2.6723]
[1725031950080,7.476,133.68,133.56,2.6723]
[1725031950289,7.476,133.68,133.56,6.38103224]
[1725031950473,7.476,133.66,133.6,3.7426]
[1725031950673,0.05236019,133.64,133.62,0.04985187]
[1725031951585,3.7418,133.63,133.62,0.04985187]
[1725031951779,0.05236019,133.64,133.62,0.04985187]
[1725031952881,2.8914,133.73,133.62,0.04985187]
[1725031953187,43.18,133.69,133.59,43.18]
[1725031953390,2.8914,133.73,133.59,43.18]
[1725031953580,43.18,133.68,133.59,43.18]
[1725031953776,43.18,133.71,133.59,43.18]
[1725031953985,0.05638737,133.66,133.64,0.04994179]
[1725031954185,3.79636361,133.66,133.64,0.05166838]
[1725031954383,0.05536361,133.66,133.64,0.05166838]
[1725031955686,0.05536361,133.66,133.57,2.8338]
[1725031955687,7.476,133.64,133.57,2.8338]
[1725031955883,11.2177,133.64,133.57,6.5772]
[1725031956184,43.18,133.67,133.57,2.8338]
[1725031956493,7.476,133.66,133.57,2.8338]
[1725031956694,0.04763303,133.63,133.6,0.05051837]
[1725031957677,3.7421,133.62,133.6,0.05051837]
[1725031957881,0.04763303,133.63,133.6,0.05051837]
[1725031958383,43.18,133.73,133.62,43.18]
[1725031958583,46.96546721,133.73,133.62,43.18]
[1725031958782,3.7397,133.71,133.62,43.18]
[1725031958977,46.96546721,133.73,133.62,43.18]
[1725031959391,46.96546721,133.73,133.66,0.04988702]
[1725031959392,0.05462714,133.69,133.66,0.04988702]
[1725031959980,3.7409,133.67,133.66,0.04988702]
[1725031960388,43.18,133.69,133.59,3.76384133]
[1725031960594,43.18,133.69,133.57,2.8338]
[1725031960888,43.18,133.69,133.57,6.56996053]
[1725031961193,43.18,133.69,133.57,6.57482337]
[1725031961394,0.04749403,133.64,133.62,0.04865687]
[1725031961592,0.05583118,133.64,133.62,0.04865687]
[1725031964092,0.05583118,133.64,133.63,3.7418]
[1725031964286,2.8822,133.72,133.6,46.99059945]
[1725031964488,46.0622,133.72,133.6,46.99059945]
[1725031964689,43.18,133.69,133.6,3.81059945]
[1725031965092,3.7417,133.64,133.59,2.6638]
[1725031965286,0.04998658,133.63,133.6,0.05170883]
[1725031965590,0.05714655,133.63,133.6,3.84009092]
[1725031965796,0.05714655,133.63,133.62,3.7421]
[1725031965990,0.05714655,133.63,133.6,3.85785825]
[1725031966197,0.05714655,133.63,133.6,0.04911166]
[1725031966398,3.79914655,133.63,133.6,0.04911166]
[1725031966690,0.05714655,133.63,133.6,3.86945773]
[1725031966896,0.05714655,133.63,133.6,0.04911166]
[1725031967290,0.05714655,133.63,133.62,3.7421]
[1725031967493,7.476,133.71,133.6,46.88060947]
[1725031968004,7.476,133.68,133.6,46.88060947]
[1725031968498,0.05244163,133.65,133.63,0.04935455]
[1725031968799,0.0528568,133.65,133.63,0.05132284]
[1725031969092,0.0528568,133.65,133.63,3.79302284]
[1725031969294,43.18,133.72,133.63,0.05132284]
[1725031969498,45.9853,133.74,133.64,2.6726]
[1725031970001,46.0271,133.76,133.65,43.18]
[1725031970186,3.7388,133.74,133.69,3.7399]
[1725031970388,45.984,133.79,133.7,0.050105]
[1725031970693,45.984,133.79,133.73,0.05220727]
[1725031971299,3.7387,133.74,133.73,0.05220727]
[1725031971498,46.9187,133.74,133.73,0.05220727]
[1725031971698,43.18,133.74,133.65,2.6245]
[1725031972094,7.476,133.73,133.65,2.6245]
[1725031972798,0.05421214,133.7,133.68,0.05227531]
[1725031973003,0.05634892,133.7,133.68,3.72766151]
[1725031973800,2.804,133.79,133.68,3.72766151]
[1725031973990,2.804,133.79,133.69,43.18]
[1725031974192,43.18,133.83,133.71,43.18]
[1725031974400,43.18,133.88,133.75,43.18]
[1725031974904,43.18,133.88,133.8,0.05551589]
[1725031975209,8.424,133.89,133.8,0.05551589]
[1725031975395,50.65577294,133.87,133.83,0.05204035]
[1725031975596,3.7361,133.84,133.83,0.05204035]
[1725031976005,3.7361,133.84,133.76,2.6268]
[1725031976006,3.737,133.81,133.74,3.7386]
[1725031976306,3.737,133.81,133.73,43.18]
[1725031976496,43.18,133.83,133.73,46.88926476]
[1725031976693,3.7369,133.81,133.75,3.7385]
[1725031977100,0.05450399,133.79,133.77,0.04807202]
[1725031977697,3.7376,133.78,133.77,0.04807202]
[1725031977898,46.9176,133.78,133.77,0.04807202]
[1725031978511,3.7376,133.78,133.77,0.04807202]
[1725031980205,3.79190399,133.79,133.77,0.04807202]
[1725031980399,0.05450399,133.79,133.77,0.04807202]
[1725031980706,43.23450399,133.79,133.77,0.04807202]
[1725031980903,7.476,133.78,133.69,2.6034]
[1725031981103,5.5242,133.8,133.61,3.7423]
[1725031981104,43.18,133.73,133.61,3.7423]
[1725031981299,43.18,133.71,133.61,5.5532]
[1725031981701,43.18,133.71,133.61,9.28805868]
[1725031982006,0.05425604,133.67,133.65,0.05640697]
[1725031982304,0.0503487,133.67,133.65,0.05158084]
[1725031982707,43.18,133.76,133.66,3.7407]
[1725031982907,43.18,133.76,133.64,43.18]
[1725031983506,44.18,133.78,133.64,43.18]
[1725031983814,0.05222731,133.72,133.7,0.05384012]
[1725031984109,0.05222731,133.72,133.7,3.84368487]
[1725031984308,0.05222731,133.72,133.7,0.05384012]
[1725031984516,7.4711,133.86,133.71,43.18]
[1725031984703,45.8815,133.85,133.73,43.18]
[1725031985204,26.54226903,133.86,133.75,43.18]
[1725031985407,26.54226903,133.86,133.78,43.18]
[1725031985408,20.94606903,133.86,133.78,43.18]
[1725031985611,20.94606903,133.86,133.81,0.05351961]
[1725031986104,20.94606903,133.86,133.81,3.72782929]
[1725031986311,20.94606903,133.86,133.81,0.05351961]
[1725031986809,43.18,133.92,133.81,3.76483404]
[1725031987007,43.18,133.92,133.85,0.05146093]
[1725031987307,43.18,133.9,133.85,0.05146093]
[1725031987613,43.18,133.87,133.85,0.05146093]
[1725031987814,43.18,133.87,133.74,2.7027]
[1725031987815,3.70421251,133.86,133.74,5.5105]
[1725031988115,43.18,133.83,133.74,5.5105]
[1725031988806,3.7375,133.79,133.77,0.05039718]
[1725031989511,3.7376,133.78,133.77,0.05039718]
[1725031989708,0.05146093,133.8,133.77,0.05039718]
[1725031990008,3.7376,133.78,133.77,0.05039718]
[1725031990409,2.8326,133.84,133.68,43.18]
[1725031990410,43.18,133.79,133.68,43.18]
[1725031990613,3.7384,133.76,133.68,50.7463543]
[1725031990814,43.18,133.77,133.68,3.8261543]
[1725031991111,43.18,133.77,133.53,130.43116098]
[1725031991112,3.7396,133.72,133.64,46.9215]
[1725031991423,0.0534547,133.69,133.67,0.04965291]
[1725031991618,0.04910765,133.69,133.67,0.05382786]
[1725031991807,0.04910765,133.69,133.67,3.79442786]
[1725031992012,0.04910765,133.69,133.68,3.72709468]
[1725031992207,0.04910765,133.69,133.67,0.05382786]
[1725031992705,3.7404,133.68,133.67,0.05382786]
[1725031992908,0.04910765,133.69,133.67,0.05382786]
[1725031993109,0.04910765,133.69,133.68,3.7267207]
[1725031993404,43.18,133.79,133.67,3.7406]
[1725031993605,43.18,133.79,133.66,43.18]
[1725031993816,43.18,133.77,133.66,47.01255732]
[1725031994004,43.18,133.79,133.66,47.01255732]
[1725031994211,43.18,133.76,133.66,47.01255732]
[1725031994409,43.18,133.79,133.66,47.01255732]
[1725031994621,0.05243666,133.72,133.7,0.04808209]
[1725031994804,50.656,133.81,133.68,43.18]
[1725031995008,43.18,133.81,133.71,43.18]
[1725031995208,0.04820964,133.77,133.75,0.05598712]
[1725031995618,3.7382,133.76,133.75,0.05598712]
[1725031995921,0.04820964,133.77,133.75,0.05598712]
[1725031996710,3.7397,133.71,133.66,47.00919149]
[1725031996909,43.18,133.77,133.66,47.00919149]
[1725031997620,3.7392,133.73,133.66,50.74999149]
[1725031997823,0.05214192,133.71,133.68,0.05045028]
[1725031998022,0.05214192,133.71,133.68,0.05290508]
[1725031998023,0.05343392,133.71,133.68,0.05290508]
[1725031999317,3.7401,133.69,133.68,0.05290508]
[1725031999519,0.05343392,133.71,133.68,0.05290508]
[1725031999914,43.18,133.7,133.59,43.18]
[1725032000112,43.18,133.7,133.59,3.65247961]
[1725032000324,3.741,133.66,133.6,3.7425]
[1725032000514,43.18,133.7,133.61,3.66669159]
[1725032000715,43.18,133.7,133.57,43.18]
[1725032001027,0.05131087,133.65,133.62,0.05075125]
[1725032001317,3.7415,133.64,133.62,0.048855]
[1725032001529,0.05616779,133.65,133.62,0.048855]
[1725032001923,0.05616779,133.65,133.63,3.7417]
[1725032002224,0.05616779,133.65,133.62,3.78435312]
[1725032002520,0.05616779,133.65,133.62,3.790755]
[1725032002719,0.05616779,133.65,133.63,3.75907656]
[1725032003225,0.05616779,133.65,133.62,0.048855]
[1725032003427,0.05616779,133.65,133.62,3.80718304]
[1725032003626,0.05616779,133.65,133.62,0.048855]
[1725032004015,3.7416,133.64,133.62,0.048855]
[1725032004525,3.7418,133.63,133.62,0.048855]
[1725032005025,43.18,133.65,133.54,8.1804]
[1725032005227,43.18,133.65,133.55,43.18]
[1725032005424,43.18,133.67,133.55,43.18]